Organisation Name,Organisation Code,Organisational Unit,Service Category Label,Procurement Category,Supplier Name,Supplier Other ID,Payment Date,Transaction Number,Amount (�),Purpose
Eden District Council,http://opendatacommunities.org/id/district-council/eden,Commercial Services Manager,Commercial Services,Agency Staff,VIVID RESOURCING,VIV001,04/11/2022,205814,4375,TIME SHEET WE 23.10.22 FM
Eden District Council,http://opendatacommunities.org/id/district-council/eden,Planning Services,Planning Services,Agency Staff,VIVID RESOURCING,VIV001,04/11/2022,205815,2220,TIME SHEET WE 23.10.22 PJ
Eden District Council,http://opendatacommunities.org/id/district-council/eden,Commercial Services Manager,Commercial Services,Agency Staff,VIVID RESOURCING,VIV001,04/11/2022,205817,2750,TIME SHEET WE 23.10.22 GM
Eden District Council,http://opendatacommunities.org/id/district-council/eden,Technical Services Manager,Administrative Buildings,Building Maintenance,CENTRAL POWER SERVICES LTD,CEN002,04/11/2022,205819,1350,MAIN CONTRACT 1.10.22-30.9.23
Eden District Council,http://opendatacommunities.org/id/district-council/eden,Technical Services Manager,Administrative Buildings,Building Maintenance,CENTRAL POWER SERVICES LTD,CEN002,04/11/2022,205821,942,MAINTENANCE WILSON GENERATOR
Eden District Council,http://opendatacommunities.org/id/district-council/eden,Commercial Services Manager,Tourism Promotion,Marketing,DESIGNWORKS LTD,DES001,04/11/2022,205822,3009,EDEN HERITAGE GUIDE
Eden District Council,http://opendatacommunities.org/id/district-council/eden,Environmental Services,1996 Mandatory Renovation Grants,Capital grants,TOP NOTCH CONTRACTORS LTD,TOP003,04/11/2022,205828,4720,FIN PAYMENT GRANT REF 220057
Eden District Council,http://opendatacommunities.org/id/district-council/eden,Planning Services,Planning Services,Agency Staff,VIVID RESOURCING,VIV001,04/11/2022,205489,1118.67,TIME SHEET WE 9.10.22 DP
Eden District Council,http://opendatacommunities.org/id/district-council/eden,Planning Services,Planning Services,Agency Staff,VIVID RESOURCING,VIV001,04/11/2022,205491,1380,TIME SHEET WE 9.10.22 PJ
Eden District Council,http://opendatacommunities.org/id/district-council/eden,Commercial Services Manager,Economic Development and Promotion,Professional fees,VIVID RESOURCING,VIV001,04/11/2022,205492,2500,TIME SHEET WE 9.10.22 KH
Eden District Council,http://opendatacommunities.org/id/district-council/eden,Planning Services,Planning Services,Agency Staff,VIVID RESOURCING,VIV001,04/11/2022,205493,4400,vTIME SHEET WE 2/9.10.22 JS
Eden District Council,http://opendatacommunities.org/id/district-council/eden,Planning Services,Planning Services,Agency Staff,G2 RECRUITMENT SOLUTIONS,G2R001,04/11/2022,205496,1653.75,TIME SHEET WE 9.10.22 JH
Eden District Council,http://opendatacommunities.org/id/district-council/eden,Planning Services,Planning Services,Agency Staff,VIVID RESOURCING,VIV001,04/11/2022,205585,2750,TIME SHEET WE 16.10.22 JS
Eden District Council,http://opendatacommunities.org/id/district-council/eden,Planning Services,Planning Services,Agency Staff,VIVID RESOURCING,VIV001,04/11/2022,205586,1221.08,TIME SHEET WE 16.10.22 DP
Eden District Council,http://opendatacommunities.org/id/district-council/eden,Technical Services Manager,Technical Services,Salaries,VIVID RESOURCING,VIV001,04/11/2022,205587,1785,TIME SHEET WE 16.10.22 PB
Eden District Council,http://opendatacommunities.org/id/district-council/eden,Planning Services,Planning Services,Agency Staff,G2 RECRUITMENT SOLUTIONS,G2R001,04/11/2022,205589,1282.5,TIME SHEET WE 16.10.22 JH
Eden District Council,http://opendatacommunities.org/id/district-council/eden,Commercial Services Manager,Economic Development and Promotion,Professional fees,VIVID RESOURCING,VIV001,04/11/2022,205687,2500,TIME SHEET WE 16.10.22 KH
Eden District Council,http://opendatacommunities.org/id/district-council/eden,Environmental Services,1996 Mandatory Renovation Grants,Capital grants,WESSEX LIFT CO. LTD,WES027,04/11/2022,205723,14471.5,INT PAYMENT GRANT REF210028
Eden District Council,http://opendatacommunities.org/id/district-council/eden,Commercial Services Manager,Economic Development and Promotion,Professional fees,APPLEBY TOWN COUNCIL,APP001,04/11/2022,205689,52063.11,INSPIRING EDENPROJECT EOI95 THE CLOISTER
Eden District Council,http://opendatacommunities.org/id/district-council/eden,Technical Services Manager,Public Conveniences,Window cleaning,URBASER LIMITED,URB002,04/11/2022,205693,13751.4,BC SEPT 22
Eden District Council,http://opendatacommunities.org/id/district-council/eden,Commercial Services Manager,Tourism Promotion,Subscriptions & levies,CUMBRIA TOURISM,CUM066,04/11/2022,205695,5460,CUMBRIA TOUROSM CONT 2022/23
Eden District Council,http://opendatacommunities.org/id/district-council/eden,Environmental Services,Environmental Enforcement,Dog Contract Collection,URBASER LIMITED,URB002,04/11/2022,205699,608.73,STRAY DOG SEPT 22 AD HOC
Eden District Council,http://opendatacommunities.org/id/district-council/eden,Technical Services Manager,Street Cleaning,Street Cleaning Contract,URBASER LIMITED,URB002,04/11/2022,205718,2012.5,CERT SC108
Eden District Council,http://opendatacommunities.org/id/district-council/eden,Technical Services Manager,Recycling,Em Wks Storage,URBASER LIMITED,URB002,04/11/2022,205720,582.83,CERT M-M&EW 127/2022
Eden District Council,http://opendatacommunities.org/id/district-council/eden,Technical Services Manager,Refuse Collection,Refuse Contract Dayworks,URBASER LIMITED,URB002,04/11/2022,205724,1491.27,CERT RC118
Eden District Council,http://opendatacommunities.org/id/district-council/eden,Chief Executive's,Local Government Review,Local Government Reorganisation - Costs,APSE,APS001,04/11/2022,205797,7150,CUMBRIA LGR SEPT22/OCT22
Eden District Council,http://opendatacommunities.org/id/district-council/eden,Information Technology Manager,Information Technology,Software � maintenance,SOUTH LAKELAND DISTRICT COUNCIL,SOU006,04/11/2022,205366,4128.6,PLAY INSPECTION APP
Eden District Council,http://opendatacommunities.org/id/district-council/eden,Technical Services Manager,Crime & Disorder Reduction Partnership,Grants and contributions,CUMBRIA COUNTY COUNCIL,CCC002,04/11/2022,205452,5220,DHR'S CONT TO 31.3.23 AGREED SAFER CUMB
Eden District Council,http://opendatacommunities.org/id/district-council/eden,Planning Policy Manager,Local Plans & Policy,Professional fees,HDH PLANNING & DEVELOPMENT LTD,HDH001,04/11/2022,205729,7676.5,edc vibility assesment less interim fee
Eden District Council,http://opendatacommunities.org/id/district-council/eden,Technical Services Manager,Repairs & Renewals Fund,Equipment � purchase,IMD & ASSOCIATES LTD,IMD001,11/11/2022,205809,5120,GYM REFURB STAGE 4 DESIGN TO TENDER
Eden District Council,http://opendatacommunities.org/id/district-council/eden,Technical Services Manager,Repairs & Renewals Fund,Equipment � purchase,EUROLIGHTING LTD,EUR010,11/11/2022,205855,6991,LIGHTS PENRITH GYM
Eden District Council,http://opendatacommunities.org/id/district-council/eden,Technical Services Manager,Closed Church Yards,Building Maintenance,ASKINS & LITTLE STONEMASONRY SPECIALISTS,ASK005,11/11/2022,205868,2635,castle park memorial archway
Eden District Council,http://opendatacommunities.org/id/district-council/eden,Legal Services Manager,Register of Electors,Equipment � maintenance,THE DOCUMENT MANAGEMENT GROUP LTD,DOC002,11/11/2022,205923,1700,12 MONTH CONTRACT 2 KODAK SCANNER
Eden District Council,http://opendatacommunities.org/id/district-council/eden,Commercial Services Manager,Commercial Services,Agency Staff,VIVID RESOURCING,VIV001,11/11/2022,205937,2750,TIME SHEET WE 30.10.22 GM
Eden District Council,http://opendatacommunities.org/id/district-council/eden,Commercial Services Manager,Commercial Services,Agency Staff,VIVID RESOURCING,VIV001,11/11/2022,205939,8750,TIME SHEET WE 16.10/30.10.22 FM
Eden District Council,http://opendatacommunities.org/id/district-council/eden,Commercial Services Manager,Tourism Promotion,Distribution,NPD NORTH LTD,NPD001,11/11/2022,205951,1080,PENRITH HERITAGE TRAIL LEAFLETS
Eden District Council,http://opendatacommunities.org/id/district-council/eden,Environmental Services,1996 Mandatory Renovation Grants,Capital grants,TOP NOTCH CONTRACTORS LTD,TOP003,11/11/2022,205959,6380,FIN PAYMENT GRANT REF 220008
Eden District Council,http://opendatacommunities.org/id/district-council/eden,Financial Services Manager,Financial Services,Agency Staff,CASTLEFIELD RECRUITMENT LTD,CAS016,11/11/2022,205960,2100,FSE SUPPORT W/C24.10.22 SH
Eden District Council,http://opendatacommunities.org/id/district-council/eden,Technical Services Manager,Arts and Leisure,Other charges for services,ALLAN ALEXANDER MCIAT,ALE009,11/11/2022,205364,3135.62,CLUBHOUSE SURVEY APPLEBY FOOTBALL CLUB
Eden District Council,http://opendatacommunities.org/id/district-council/eden,Financial Services Manager,Financial Services,Agency Staff,Reed Specialist Recruitment Ltd,REE009,11/11/2022,205705,852,FSE SUPPORT WE 14.10.22 MI
Eden District Council,http://opendatacommunities.org/id/district-council/eden,Technical Services Manager,Eden Leisure Centre & Appleby Swimming P,GLL F/Field Amenity Area,URBASER LIMITED,URB002,11/11/2022,205716,5594.65,FRENCHFIELD GM SEPT22
Eden District Council,http://opendatacommunities.org/id/district-council/eden,Planning Services,Planning Services,Agency Staff,VIVID RESOURCING,VIV001,11/11/2022,205798,3162.5,TIME SHEET WE 23.10.22 JS
Eden District Council,http://opendatacommunities.org/id/district-council/eden,Planning Services,Planning Services,Agency Staff,G2 RECRUITMENT SOLUTIONS,G2R001,11/11/2022,205800,2600,TIME SHEET WE 23.10.22 PG
Eden District Council,http://opendatacommunities.org/id/district-council/eden,Planning Services,Planning Services,Agency Staff,G2 RECRUITMENT SOLUTIONS,G2R001,11/11/2022,205802,1642.5,TIME SHEET WE 23.10.22 JH
Eden District Council,http://opendatacommunities.org/id/district-council/eden,Technical Services Manager,Technical Services,Salaries,VIVID RESOURCING,VIV001,11/11/2022,205812,1785,TIME SHEET WE 23.10.22 PB
Eden District Council,http://opendatacommunities.org/id/district-council/eden,Commercial Services Manager,Economic Development and Promotion,Professional fees,VIVID RESOURCING,VIV001,11/11/2022,205813,2500,TIME SHEET WE 23.10.22 KH
Eden District Council,http://opendatacommunities.org/id/district-council/eden,Planning Services,Planning Services,Agency Staff,VIVID RESOURCING,VIV001,11/11/2022,205816,1127,TIME SHEET WE 23.10.22 DP
Eden District Council,http://opendatacommunities.org/id/district-council/eden,Environmental Services,1996 Mandatory Renovation Grants,Capital grants,DAY CUMMINS LTD,DAY002,11/11/2022,205829,1260,INT PAYMENT GRANT REF220030
Eden District Council,http://opendatacommunities.org/id/district-council/eden,Legal Services Manager,Land Management,Building Maintenance,WESTMORLAND FIRE & SECURITY,WES001,11/11/2022,205831,1000,ALARM INSTALL
Eden District Council,http://opendatacommunities.org/id/district-council/eden,Transformation & Customers Head of,Central Expenses,Postages,CUMBRIA MAILING SERVICES LTD,CUM011,11/11/2022,205835,801.49,BLUE BAG MAIL OUT
Eden District Council,http://opendatacommunities.org/id/district-council/eden,Financial Services Manager,Financial Services,Agency Staff,CASTLEFIELD RECRUITMENT LTD,CAS016,11/11/2022,205836,1312.5,FSE SUPPORT WC 17.10.22 SH
Eden District Council,http://opendatacommunities.org/id/district-council/eden,Information Technology Manager,Information Technology,Software � maintenance,SOUTH LAKELAND DISTRICT COUNCIL,SOU006,11/11/2022,205366,4128.6,PLAY INSPECTION APP
Eden District Council,http://opendatacommunities.org/id/district-council/eden,Environmental Services,Homelessness,Rent,HEART OF CUMBRIA LTD,HEA029,11/11/2022,205721,2880,RENT 63/67 PRIMROSE QTR ENDING 31.12.22
Eden District Council,http://opendatacommunities.org/id/district-council/eden,Environmental Services,Homelessness,Rent,HEART OF CUMBRIA LTD,HEA029,11/11/2022,205722,2880,RENT 63/67 PRIMROSE QTR ENDING 30.9.22
Eden District Council,http://opendatacommunities.org/id/district-council/eden,Planning Services,Planning Services,Agency Staff,G2 RECRUITMENT SOLUTIONS,G2R001,11/11/2022,205801,1092.5,TIME SHEET WE 23.10.22 KA
Eden District Council,http://opendatacommunities.org/id/district-council/eden,Revenue/Benefits Manager,Revenue & Benefits,Software � maintenance,CIVICA UK LTD,CIV002,11/11/2022,205811,2715,CIVICA PAY ANUALS YR3 1.12.22-31.11.23
Eden District Council,http://opendatacommunities.org/id/district-council/eden,Commercial Services Manager,Economic Development and Promotion,Grants and contributions,G BOWMAN BUILDING CONTRACTORS LTD,BOW014,11/11/2022,205859,500,1ST APPRENTICE PAYMENT LJC
Eden District Council,http://opendatacommunities.org/id/district-council/eden,Commercial Services Manager,Economic Development and Promotion,Grants and contributions,H&H REEDS PRINTERS LTD,REE001,11/11/2022,205880,1000,1ST APPRENTICE PAYMENT ST
Eden District Council,http://opendatacommunities.org/id/district-council/eden,Financial Services Manager,Treasury Management,Professional fees,ARLINGCLOSE LTD,ARL002,11/11/2022,205950,4687.5,TREASURY MANAGEMENT SERVICE 1.11.22-23
Eden District Council,http://opendatacommunities.org/id/district-council/eden,Technical Services Manager,Eden Leisure Centre & Appleby Swimming P,Additional covid costs provision,GREENWICH LEISURE LTD,NCL001,11/11/2022,204305,18922.47,NATIONAL LEISURE RECOVERY FUND
Eden District Council,http://opendatacommunities.org/id/district-council/eden,Environmental Services,Appleby Fair,Street Cleaning Contract,URBASER LIMITED,URB002,11/11/2022,205719,20206.07,CERT M-SC127
Eden District Council,http://opendatacommunities.org/id/district-council/eden,Information Technology Manager,Information Technology,Government Connect,VODAFONE LTD,VOD003,11/11/2022,205839,1361.36,QTR CHARGES FOR SERVICES
Eden District Council,http://opendatacommunities.org/id/district-council/eden,Technical Services Manager,Closed Church Yards,GM INSPECTIONS & MAINTENANCE,URBASER LIMITED,URB002,11/11/2022,205864,18554.05,CERT M-GM127
Eden District Council,http://opendatacommunities.org/id/district-council/eden,Technical Services Manager,Cemeteries,ADHOC WORKS FOR BURIALS,URBASER LIMITED,URB002,11/11/2022,205865,1807.56,CERT GMC5
Eden District Council,http://opendatacommunities.org/id/district-council/eden,Technical Services Manager,Refuse Collection,Contract refuse collection,URBASER LIMITED,URB002,11/11/2022,205879,83288.68,CERT M-RC127
Eden District Council,http://opendatacommunities.org/id/district-council/eden,Technical Services Manager,Recycling,material price fluctuations,CUMBRIA WASTE RECYCLING LTD,CUM022,11/11/2022,205925,1921.08,CERT BS-F06 2022-23
Eden District Council,http://opendatacommunities.org/id/district-council/eden,Technical Services Manager,Recycling,Recycling  - Bring Sites,CUMBRIA WASTE RECYCLING LTD,CUM022,11/11/2022,205926,7585.36,CERT BS6 2022-23
Eden District Council,http://opendatacommunities.org/id/district-council/eden,Technical Services Manager,Recycling,Recycling - Bag & Box,CUMBRIA WASTE RECYCLING LTD,CUM022,11/11/2022,205927,33177.97,CERT GB6 2022-23
Eden District Council,http://opendatacommunities.org/id/district-council/eden,Technical Services Manager,Recycling,material price fluctuations,CUMBRIA WASTE RECYCLING LTD,CUM022,11/11/2022,205928,1730.36,CERT F-06-2022/23
Eden District Council,http://opendatacommunities.org/id/district-council/eden,Technical Services Manager,Administrative Buildings,Water charges � metered,WATER PLUS,UNI008,11/11/2022,205977,846.46,MANSION HOUSE 2.10.22-01.11.22
Eden District Council,http://opendatacommunities.org/id/district-council/eden,Legal Services Manager,Land Management,Building Maintenance,METCALFE PLANT & TOOL HIRE LTD,MET002,15/11/2022,205101,19986.79,PATEGILL PIGEON LOFT REMOVAL
Eden District Council,http://opendatacommunities.org/id/district-council/eden,Information Technology Manager,Information Technology,IT Contracts & Maintenance,BTS HOLDINGS PLC,BTS001,15/11/2022,205122,-802,CREDIT AGAINST INV 36628/A5
Eden District Council,http://opendatacommunities.org/id/district-council/eden,Information Technology Manager,Information Technology,IT Contracts & Maintenance,BTS HOLDINGS PLC,BTS001,15/11/2022,205123,802,SERVICE AGREEMENT COMMSWARE 12.9.21-22
Eden District Council,http://opendatacommunities.org/id/district-council/eden,Legal Services Manager,Land Management,Building Maintenance,METCALFE PLANT & TOOL HIRE LTD,MET002,15/11/2022,205422,-19986.79,CREDIT FOR INVOICE 5409
Eden District Council,http://opendatacommunities.org/id/district-council/eden,Technical Services Manager,Technical Services,Software � purchase,GRAITEC LTD,GRA030,18/11/2022,205861,1500,AUTOCAD
Eden District Council,http://opendatacommunities.org/id/district-council/eden,Technical Services Manager,Eden Leisure Centre & Appleby Swimming P, Adhoc Works,Andrew Richardson,RIC029,18/11/2022,205983,1145,EXTERIOR PAINT FRENCHFIELD GATES
Eden District Council,http://opendatacommunities.org/id/district-council/eden,Commercial Services Manager,Community Development & Engagement,Community engagement development,SURFACING STANDARDS LTD,SUR009,18/11/2022,205987,2200,phase 1 surveys/feasibility report
Eden District Council,http://opendatacommunities.org/id/district-council/eden,Technical Services Manager,Parks and Open Spaces,Play areas - maintenance,FENLAND LEISURE PRODUCTS LTD (ONLINE PLAYGROUNDS),FEN002,18/11/2022,205996,1766,SWING/ DELIVERY
Eden District Council,http://opendatacommunities.org/id/district-council/eden,Technical Services Manager,Eden Leisure Centre & Appleby Swimming P,Building Maintenance - Leisure,WILKINSON JAMES PARTNERSHIP LIMITED,WIL023,18/11/2022,206004,1579.4,BOWLS HALL ELECTRICAL DESIGN
Eden District Council,http://opendatacommunities.org/id/district-council/eden,Legal Services Manager,Land Management,Land Management Contract,CUMBRIA JOINERY & FENCING LTD,CUM136,18/11/2022,206069,4554.94,INSTALL HIGH MESH SYSTEM
Eden District Council,http://opendatacommunities.org/id/district-council/eden,Technical Services Manager,Closed Church Yards,Planned Maintenance,GRACIELA AINSWORTH SCULPTURE CONSERVATION LTD,GRA036,18/11/2022,206099,2510,BRONZE MEMORIAL PLAQUES
Eden District Council,http://opendatacommunities.org/id/district-council/eden,Commercial Services Manager,Tourism Promotion,Distribution,BUCKET  & SPADE MEDIA LTD,BUC010,18/11/2022,206132,2000,CONT DISCOUNTED RATES 2023 EDEN VISITOR
Eden District Council,http://opendatacommunities.org/id/district-council/eden,Financial Services Manager,Financial Services,Pool Contribution,CUMBRIA COUNTY COUNCIL,CCC002,18/11/2022,205691,296594,NON DOMESTIC RATES POOL 21/22 YR END
Eden District Council,http://opendatacommunities.org/id/district-council/eden,Financial Services Manager,Heart of Cumbria,Professional fees,BAINES WILSON,BAI007,18/11/2022,205704,504,PRO CHARGES P/E SEPT 22
Eden District Council,http://opendatacommunities.org/id/district-council/eden,Transformation & Customers Head of,Emergency Planning and Works,Advertising,BARRNON MEDIA LTD,CUM001,18/11/2022,205890,500,ad 29.10.22
Eden District Council,http://opendatacommunities.org/id/district-council/eden,Technical Services Manager,Land Management,Professional expenses,BAKER MALLETT LLP,BAK010,18/11/2022,205932,732,FEASIBILITY/TENDER FEES NR23
Eden District Council,http://opendatacommunities.org/id/district-council/eden,Technical Services Manager,Land Management,Professional expenses,BAKER MALLETT LLP,BAK010,18/11/2022,205933,3080,PROJECT MANAGER 1.10.22-31.10.22 NR22
Eden District Council,http://opendatacommunities.org/id/district-council/eden,Commercial Services Manager,Economic Development and Promotion,Grants and contributions,REDACTED INFORMATION,ALD010,18/11/2022,205948,500,1ST APPRENTICE PAYMENT TP
Eden District Council,http://opendatacommunities.org/id/district-council/eden,Commercial Services Manager,Tourism Promotion,Marketing,CUMBRIA TOURISM,CUM066,18/11/2022,205988,640,holidayguide 1/2 page
Eden District Council,http://opendatacommunities.org/id/district-council/eden,Technical Services Manager,Land Charges,Professional fees,CUMBRIA COUNTY COUNCIL,CCC002,18/11/2022,206066,572.5,SEARCHES SEPT 22
Eden District Council,http://opendatacommunities.org/id/district-council/eden,Technical Services Manager,Land Charges,Professional fees,CUMBRIA COUNTY COUNCIL,CCC002,18/11/2022,206072,1245.2,OCT22 SEARCHES
Eden District Council,http://opendatacommunities.org/id/district-council/eden,Financial Services Manager,Heart of Cumbria,Professional fees,BAINES WILSON,BAI007,18/11/2022,206079,2570,PRO CHARGES TO 31.10.22 TENANCY AGREEMEN
Eden District Council,http://opendatacommunities.org/id/district-council/eden,Commercial Services Manager,Economic Development and Promotion,Professional fees,Philippa Ball,BAL010,18/11/2022,205877,4698.29,ECO DEV SUPPORT OCT22
Eden District Council,http://opendatacommunities.org/id/district-council/eden,Planning Services,Planning Services,Agency Staff,VIVID RESOURCING,VIV001,18/11/2022,205922,1102.5,TIME SHEET WE 30.10.22DP
Eden District Council,http://opendatacommunities.org/id/district-council/eden,Planning Services,Planning Services,Agency Staff,G2 RECRUITMENT SOLUTIONS,G2R001,18/11/2022,205924,1653.75,TIME SHEET WE 30.10.22 JS
Eden District Council,http://opendatacommunities.org/id/district-council/eden,Chief Executive's,Chief Executive,Agency Staff,CIPFA PENNA,CIP013,18/11/2022,205929,24780,INTERIM MANAGEMENT OCT 22 IF
Eden District Council,http://opendatacommunities.org/id/district-council/eden,Financial Services Manager,Financial Services,Agency Staff,CIPFA PENNA,CIP013,18/11/2022,205930,13578.75,INTERIM MANAGEMENT OCT 22 DB
Eden District Council,http://opendatacommunities.org/id/district-council/eden,Technical Services Manager,Technical Services,Salaries,OYSTER PARTNERSHIP,OYS001,18/11/2022,205934,1075,TIME SHEET W/E 24.10.22 CA
Eden District Council,http://opendatacommunities.org/id/district-council/eden,Commercial Services Manager,Economic Development and Promotion,Professional fees,VIVID RESOURCING,VIV001,18/11/2022,205936,2500,TIME SHEET WE 30.10.22 KH
Eden District Council,http://opendatacommunities.org/id/district-council/eden,Planning Services,Planning Services,Agency Staff,VIVID RESOURCING,VIV001,18/11/2022,205938,2750,TIME SHEET WE 30.10.22 JS
Eden District Council,http://opendatacommunities.org/id/district-council/eden,Technical Services Manager,Technical Services,Salaries,VIVID RESOURCING,VIV001,18/11/2022,205940,1785,TIME SHEET WE 30.10.22 PB
Eden District Council,http://opendatacommunities.org/id/district-council/eden,Planning Services,Planning Services,Agency Staff,VIVID RESOURCING,VIV001,18/11/2022,205941,2280,TIME SHEET WE 30.10.22 PJ
Eden District Council,http://opendatacommunities.org/id/district-council/eden,Technical Services Manager,Recycling,Garden Waste Skips,CUMBRIA WASTE RECYCLING LTD,CUM022,18/11/2022,205957,5242,SKIPS
Eden District Council,http://opendatacommunities.org/id/district-council/eden,Commercial Services Manager,Economic Development and Promotion,Professional fees,DEYTON BELL,DEY002,18/11/2022,205965,10400,project management support sep/oct22
Eden District Council,http://opendatacommunities.org/id/district-council/eden,Environmental Services,Environmental Enforcement,Operational leases (Leased car scheme),VOLKSWAGEN GROUP LEASING,VOL003,18/11/2022,205803,1688.08,VAN RENTAL TO 5.12.22
Eden District Council,http://opendatacommunities.org/id/district-council/eden,Environmental Services,Environmental Enforcement,Operational leases (Leased car scheme),VOLKSWAGEN GROUP LEASING,VOL003,18/11/2022,205804,1688.08,VAN RENTAL TO 5.12.22
Eden District Council,http://opendatacommunities.org/id/district-council/eden,Environmental Services,Environmental Enforcement,Dog Contract O.O.H retainer,URBASER LIMITED,URB002,18/11/2022,205850,1290.01,STRAY DOG OCT 22
Eden District Council,http://opendatacommunities.org/id/district-council/eden,Technical Services Manager,Land Management,Professional expenses,MBSP CONSULTANCY LTD,MBS001,18/11/2022,205876,7800,ONE EDEN SUPPORT OCT22
Eden District Council,http://opendatacommunities.org/id/district-council/eden,Legal Services Manager,Land Management,Professional fees,WALTON GOODLAND LTD,WAL008,18/11/2022,205892,3874.5,surveyor oct 22
Eden District Council,http://opendatacommunities.org/id/district-council/eden,Technical Services Manager,Footway Lighting,Electricity,NPOWER LTD,NPO001,18/11/2022,205921,6578.67,ST LIGHTING MH 1.10.22-31.10.22
Eden District Council,http://opendatacommunities.org/id/district-council/eden,Environmental Services,Environmental Services,Agency Staff,IRG ADVISORS LLP / T/A ODGERS INTERIM,ODG001,18/11/2022,205931,13953.75,INT ASS DIRECTOR COMMUNITES PA OCT22
Eden District Council,http://opendatacommunities.org/id/district-council/eden,Commercial Services Manager,Economic Development and Promotion,Grants and contributions,ONE CALL PENRITH LTD,ONE007,18/11/2022,205953,1000,FINAL APPRENTICE PAYMENT MH
Eden District Council,http://opendatacommunities.org/id/district-council/eden,Financial Services Manager,Financial Services,Internal Audit,TIAA LTD,TIA001,18/11/2022,205967,1005,22/23 AUDIT MANAGEMENT 2
Eden District Council,http://opendatacommunities.org/id/district-council/eden,Financial Services Manager,Financial Services,Internal Audit,TIAA LTD,TIA001,18/11/2022,205968,2680,22/23 ICT ASSET MANAGEMENT
Eden District Council,http://opendatacommunities.org/id/district-council/eden,Technical Services Manager,Cemeteries,GM External Contractors,URBASER LIMITED,URB002,18/11/2022,205991,1609.43,CERT GM206
Eden District Council,http://opendatacommunities.org/id/district-council/eden,Technical Services Manager,Footway Lighting,FL  Contract,URBASER LIMITED,URB002,18/11/2022,206007,2888.69,footway lighting oct22
Eden District Council,http://opendatacommunities.org/id/district-council/eden,Environmental Services,Pest Control,Pest Control,RENTOKIL INITIAL PEST CONTROL,REN009,18/11/2022,206082,1094.32,PESTS MISC 1.12.22-31.12.22
Eden District Council,http://opendatacommunities.org/id/district-council/eden,Technical Services Manager,Arts and Leisure,Other charges for services,ALLAN ALEXANDER MCIAT,ALE009,18/11/2022,205943,1850,APPLEBY FOOTBALL CLUB PAVILLION
Eden District Council,http://opendatacommunities.org/id/district-council/eden,Technical Services Manager,Eden Leisure Centre & Appleby Swimming P,Building Maintenance - Leisure,WILKINSON JAMES PARTNERSHIP LIMITED,WIL023,18/11/2022,205946,1088.6,PEN LEI CENTRE BOWLS HALL ELECTRIC DESIG
Eden District Council,http://opendatacommunities.org/id/district-council/eden,Human Resources Manager,Central Expenses,Welfare,OH ACQUISITIONS LIMITED,OHA001,18/11/2022,205949,630,OH APPOINTMENTS
Eden District Council,http://opendatacommunities.org/id/district-council/eden,Technical Services Manager,Public Conveniences,Water testing,MITIE,REN007,18/11/2022,205382,1100,SERVICES 1.10.22-31.10.22
Eden District Council,http://opendatacommunities.org/id/district-council/eden,Legal Services Manager,Legal Services,Agency Staff,VENN GROUP LIMITED,VEN003,18/11/2022,205727,1188,TEMP STAFF W/E 16.10.22 LD
Eden District Council,http://opendatacommunities.org/id/district-council/eden,Financial Services Manager,Financial Services,Agency Staff,Reed Specialist Recruitment Ltd,REE009,18/11/2022,205841,852,FSE SUPPORT WE 21.10.22 MI
Eden District Council,http://opendatacommunities.org/id/district-council/eden,Information Technology Manager,Information Technology,Government Connect,NOMINET,NOM001,18/11/2022,205852,765.94,LOT 1 DNS Q3 AUG22-OCT22-YR2 FOR Q3
Eden District Council,http://opendatacommunities.org/id/district-council/eden,Commercial Services Manager,Economic Development and Promotion,Professional fees,WSP UK LTD,WSP001,18/11/2022,205858,4892,VOREDA HOUSE EDC TH CAR PARKING ASSESSMENT
Eden District Council,http://opendatacommunities.org/id/district-council/eden,Legal Services Manager,Legal Services,Agency Staff,VENN GROUP LIMITED,VEN003,18/11/2022,205862,1105.5,TIME SHEET WE 23.10.22 LD
Eden District Council,http://opendatacommunities.org/id/district-council/eden,Technical Services Manager,Closed Church Yards,Building Maintenance,ASKINS & LITTLE STONEMASONRY SPECIALISTS,ASK005,18/11/2022,205867,6068,castle park memorial stone cleaning
Eden District Council,http://opendatacommunities.org/id/district-council/eden,Financial Services Manager,Financial Services,Printing and stationary,HEATONS GROUP LTD,LAK004,18/11/2022,205869,536.67,STATIONERY / PAPER
Eden District Council,http://opendatacommunities.org/id/district-council/eden,Technical Services Manager,Recycling,Recycling - Garden Waste,CUMBRIA WASTE RECYCLING LTD,CUM022,25/11/2022,206096,37461.91,CERT GW-7-22/23
Eden District Council,http://opendatacommunities.org/id/district-council/eden,Commercial Services Manager,Museum,Electricity,NPOWER LTD,NPO001,25/11/2022,206116,636.49,TIC PENRITH
Eden District Council,http://opendatacommunities.org/id/district-council/eden,Technical Services Manager,Recycling,Recycling - Bag & Box,CUMBRIA WASTE RECYCLING LTD,CUM022,25/11/2022,206123,33177.97,cert gb7 2022-23
Eden District Council,http://opendatacommunities.org/id/district-council/eden,Technical Services Manager,Recycling,Recycling  - Bring Sites,CUMBRIA WASTE RECYCLING LTD,CUM022,25/11/2022,206124,7585.36,cert bs7 2022-23
Eden District Council,http://opendatacommunities.org/id/district-council/eden,Technical Services Manager,Administrative Buildings,Electricity,NPOWER LTD,NPO001,25/11/2022,206128,2741.82,th 1.10.22-31.10.22
Eden District Council,http://opendatacommunities.org/id/district-council/eden,Planning Policy Manager,Local Plans & Policy,Agency Staff,G2 RECRUITMENT SOLUTIONS,G2R001,25/11/2022,206137,2109,TIME SHEET WE 11.09.22 GH
Eden District Council,http://opendatacommunities.org/id/district-council/eden,Technical Services Manager,Arts and Leisure,Grants and contributions,ALSTON RECREATION GROUND TRUST,ALS014,25/11/2022,206141,3600,1ST PAYMENT ARTS/CULTURE GRANT
Eden District Council,http://opendatacommunities.org/id/district-council/eden,Technical Services Manager,Administrative Buildings,Electricity,NPOWER LTD,NPO001,25/11/2022,206156,1932.31,MH 1.10.22-31.10.22
Eden District Council,http://opendatacommunities.org/id/district-council/eden,Technical Services Manager,Administrative Buildings,Gas,GAZPROM ENERGY,GAZ001,25/11/2022,206163,598.46,TOWN HALL
Eden District Council,http://opendatacommunities.org/id/district-council/eden,Technical Services Manager,Community Capital,Professional expenses,WALTON GOODLAND LTD,WAL008,25/11/2022,205947,5267.5,CASTLE PARK TENNIS COURTS SPET/OCT22
Eden District Council,http://opendatacommunities.org/id/district-council/eden,Legal Services Manager,Elections,Printing and stationary,PRINT IMAGE FACILITIES LLP,PRI014,25/11/2022,206070,1298,POLL CARDS
Eden District Council,http://opendatacommunities.org/id/district-council/eden,Financial Services Manager,Financial Services,Subscriptions & levies,PIXEL FINANCIAL MANAGEMENT LTD,PIX002,25/11/2022,206073,1575,PIXEL FUNDING SERVICE 22/23
Eden District Council,http://opendatacommunities.org/id/district-council/eden,Technical Services Manager,Central Health & Safety Expenses,Other charges for services,ROCKSURE SYSTEMS LTD T/A PEOPLESAFE,ROC005,25/11/2022,206076,521.1,SMARTPHONE SUBS QUARTERLEY
Eden District Council,http://opendatacommunities.org/id/district-council/eden,Technical Services Manager,Public Conveniences,Window cleaning,URBASER LIMITED,URB002,25/11/2022,206108,13751.4,BC OCT 22
Eden District Council,http://opendatacommunities.org/id/district-council/eden,Environmental Services,1996 Mandatory Renovation Grants,Capital grants,TOP NOTCH CONTRACTORS LTD,TOP003,25/11/2022,206131,690,FIN PAYMENT GRANT REF 210073 ADDITIONAL
Eden District Council,http://opendatacommunities.org/id/district-council/eden,Commercial Services Manager,Community Development & Engagement,Community Fund,WARCOP PARISH COUNCIL,WAR001,25/11/2022,206151,2500,EDC COMMUNITY FUND 2ND AND FINAL PAYMENT
Eden District Council,http://opendatacommunities.org/id/district-council/eden,Technical Services Manager,Land Management,Building works,BLUE SKY DESIGN INTERIORS LTD,BLU015,25/11/2022,206059,3200,STAGE 1 INTERIOR DESIGN
Eden District Council,http://opendatacommunities.org/id/district-council/eden,Planning Services,Planning Services,Agency Staff,G2 RECRUITMENT SOLUTIONS,G2R001,25/11/2022,206067,1665,TIME SHEET WE 6.11.22 JH
Eden District Council,http://opendatacommunities.org/id/district-council/eden,Financial Services Manager,Financial Services,Agency Staff,CASTLEFIELD RECRUITMENT LTD,CAS016,25/11/2022,206077,2200,fse support wc 31.10.22 SH
Eden District Council,http://opendatacommunities.org/id/district-council/eden,Corporate Services Director,Director of Corporate Services,Agency Staff,CIPFA PENNA,CIP013,25/11/2022,206081,17600,INTERIM MANAGEMENT PS OCT22
Eden District Council,http://opendatacommunities.org/id/district-council/eden,Technical Services Manager,Eden Leisure Centre & Appleby Swimming P,Building Maintenance - Leisure,DYNAMIC JOINERY LTD,DYN004,25/11/2022,206083,2370,ALTER DOORS IN GYM
Eden District Council,http://opendatacommunities.org/id/district-council/eden,Technical Services Manager,Eden Leisure Centre & Appleby Swimming P,Building Maintenance - Leisure,DYNAMIC JOINERY LTD,DYN004,25/11/2022,206084,780,SUPPLY 20 SHEETS PLY
Eden District Council,http://opendatacommunities.org/id/district-council/eden,Technical Services Manager,Recycling,Garden Waste Skips,CUMBRIA WASTE RECYCLING LTD,CUM022,25/11/2022,206086,4766,SKIPS OCT22
Eden District Council,http://opendatacommunities.org/id/district-council/eden,Technical Services Manager,Footway Lighting,FL Day Works & schedule rates,ELECTRICITY NORTH WEST LTD,ELE005,25/11/2022,206125,612.08,disc fairview grns
Eden District Council,http://opendatacommunities.org/id/district-council/eden,Transformation & Customers Head of,Emergency Planning and Works,Advertising,BARRNON MEDIA LTD,CUM001,25/11/2022,206001,500,COVID AD 5.11.22
Eden District Council,http://opendatacommunities.org/id/district-council/eden,Technical Services Manager,Parks and Open Spaces,Play areas - maintenance,HAGS SMP,HAG001,25/11/2022,206095,1315,SLIDE WETHERIGGS
Eden District Council,http://opendatacommunities.org/id/district-council/eden,Environmental Services,1996 Mandatory Renovation Grants,Capital grants,C W COX & SONS (KENDAL)  LTD,COX001,25/11/2022,206104,6250,FIN PAYMENT GRANT REF 220036
Eden District Council,http://opendatacommunities.org/id/district-council/eden,Environmental Services,1996 Mandatory Renovation Grants,Capital grants,C W COX & SONS (KENDAL)  LTD,COX001,25/11/2022,206139,6870,FIN PAYMENT GRANT REF 220047
Eden District Council,http://opendatacommunities.org/id/district-council/eden,Commercial Services Manager,Commercial Services,Agency Staff,VIVID RESOURCING,VIV001,25/11/2022,206145,5500,TIME SHEET WE 6.11/13.11.22GM
Eden District Council,http://opendatacommunities.org/id/district-council/eden,Planning Services,Planning Services,Agency Staff,VIVID RESOURCING,VIV001,25/11/2022,206146,2220,TIME SHEET WE 13.11.22PJ
Eden District Council,http://opendatacommunities.org/id/district-council/eden,Commercial Services Manager,Commercial Services,Agency Staff,VIVID RESOURCING,VIV001,25/11/2022,206148,8750,TIME SHEET WE6.11/ 13.11.22 FM
Eden District Council,http://opendatacommunities.org/id/district-council/eden,Environmental Services,1996 Mandatory Renovation Grants,Capital grants,C W COX & SONS (KENDAL)  LTD,COX001,25/11/2022,206169,3400,fin payment grant ref 220038
Eden District Council,http://opendatacommunities.org/id/district-council/eden,Planning Services,Planning Services,Agency Staff,G2 RECRUITMENT SOLUTIONS,G2R001,25/11/2022,206171,3250,TIME SHEET WE 13.11.22 PG
Eden District Council,http://opendatacommunities.org/id/district-council/eden,Financial Services Manager,Financial Services,Agency Staff,CASTLEFIELD RECRUITMENT LTD,CAS016,25/11/2022,206245,2200,FSE SUPPORT W/C07.11.22 SH
Eden District Council,http://opendatacommunities.org/id/district-council/eden,Commercial Services Manager,Economic Development and Promotion,Professional fees,CUMBRIA CHAMBER OF COMMERCE AND INDUSTRY,CUM003,25/11/2022,206246,600,6 MEMBERSHIPS
Eden District Council,http://opendatacommunities.org/id/district-council/eden,Technical Services Manager,Eden Leisure Centre & Appleby Swimming P,Building Maintenance - Leisure,VERTI GREEN IMPORTS LTD,VER007,25/11/2022,206261,2756,WALL PANELS SUPPLY AND FIT
Eden District Council,http://opendatacommunities.org/id/district-council/eden,Technical Services Manager,Repairs & Renewals Fund,Equipment � purchase,CONNEXIONS GROUP,TEL001,25/11/2022,206263,3538.11,GYM DATA POINTS
Eden District Council,http://opendatacommunities.org/id/district-council/eden,Financial Services Manager,Financial Services,Agency Staff,Reed Specialist Recruitment Ltd,REE009,25/11/2022,205986,852,fse support we 28.10.22 mi
Eden District Council,http://opendatacommunities.org/id/district-council/eden,Technical Services Manager,Public Conveniences,Water testing,MITIE,REN007,25/11/2022,205989,1100,services 1.11.22-30.11.22
Eden District Council,http://opendatacommunities.org/id/district-council/eden,Technical Services Manager,Administrative Buildings,Building Maintenance,T & S AIR CONDITIONING LTD,TSA001,25/11/2022,205993,594,MAIN AIR CON MH AND TH
Eden District Council,http://opendatacommunities.org/id/district-council/eden,Legal Services Manager,Legal Services,Agency Staff,VENN GROUP LIMITED,VEN003,25/11/2022,206055,1089,TIME SHEET WE 30.10.22 LD
Eden District Council,http://opendatacommunities.org/id/district-council/eden,Planning Services,Planning Services,Agency Staff,VIVID RESOURCING,VIV001,25/11/2022,206060,1127,TIME SHEET WE 6.11.22 DP
Eden District Council,http://opendatacommunities.org/id/district-council/eden,Commercial Services Manager,Economic Development and Promotion,Professional fees,VIVID RESOURCING,VIV001,25/11/2022,206061,2500,TIME SHEET WE 6.11.22 KH
Eden District Council,http://opendatacommunities.org/id/district-council/eden,Planning Services,Planning Services,Agency Staff,VIVID RESOURCING,VIV001,25/11/2022,206062,2280,TIME SHEET WE 6.11.22 PJ
Eden District Council,http://opendatacommunities.org/id/district-council/eden,Technical Services Manager,Technical Services,Salaries,VIVID RESOURCING,VIV001,25/11/2022,206063,1785,TIME SHEET WE 6.11.22 PB
Eden District Council,http://opendatacommunities.org/id/district-council/eden,Planning Services,Planning Services,Agency Staff,VIVID RESOURCING,VIV001,25/11/2022,206064,2750,TIME SHEET WE 6.11.22 JS
Eden District Council,http://opendatacommunities.org/id/district-council/eden,Technical Services Manager,Technical Services,Salaries,OYSTER PARTNERSHIP,OYS001,25/11/2022,206065,1150,TIME SHEET WC 31.10.22
Eden District Council,http://opendatacommunities.org/id/district-council/eden,Financial Services Manager,Financial Services,Agency Staff,Reed Specialist Recruitment Ltd,REE009,25/11/2022,206100,722.24,FSE SUPPORT WE 4.11.22 MI
Eden District Council,http://opendatacommunities.org/id/district-council/eden,Legal Services Manager,Legal Services,Agency Staff,VENN GROUP LIMITED,VEN003,25/11/2022,206119,916.44,TIME SHEET WE 6.11.22 LD
Eden District Council,http://opendatacommunities.org/id/district-council/eden,Information Technology Manager,Information Technology,Web Services,OVALTECH LTD,OVA001,02/12/2022,205990,745,WEB BENEFITS CALCULATOR 7.11.22-06.11.23
Eden District Council,http://opendatacommunities.org/id/district-council/eden,Planning Services,Planning Services,Agency Staff,G2 RECRUITMENT SOLUTIONS,G2R001,02/12/2022,206170,1200,TIMNE SHEET WE 13.11.22 SS
Eden District Council,http://opendatacommunities.org/id/district-council/eden,Technical Services Manager,Land Management,Building works,Collinson Construction Ltd,COL033,02/12/2022,206247,44476.17,MAIN CONTRACT WORKS INVOICE 2
Eden District Council,http://opendatacommunities.org/id/district-council/eden,Commercial Services Manager,Economic Development and Promotion,Grants and contributions,COLEMAN ROOFING LTD,COL034,02/12/2022,206249,500,1ST APPRENTICE GRANT WG
Eden District Council,http://opendatacommunities.org/id/district-council/eden,Financial Services Manager,Financial Services,Agency Staff,Reed Specialist Recruitment Ltd,REE009,02/12/2022,206252,778.67,FSE SUPPORT WE 11.11.22 MI
Eden District Council,http://opendatacommunities.org/id/district-council/eden,Technical Services Manager,Sustainability,Capital grants,REDACTED INFORMATION,PAR044,02/12/2022,206257,4367.5,GREENING EDEN BUSINESS SCHEME
Eden District Council,http://opendatacommunities.org/id/district-council/eden,Chief Executive's,Local Government Review,Local Government Reorganisation - Costs,APSE,APS001,02/12/2022,206258,7475,CUMBRIA LGR WAST WORK PACKAGE OCT/NOV22
Eden District Council,http://opendatacommunities.org/id/district-council/eden,Technical Services Manager,Vehicle Parking Off Street,Electricity,NPOWER LTD,NPO001,02/12/2022,206278,500.3,TOURISM 1.1.22-31.3.22
Eden District Council,http://opendatacommunities.org/id/district-council/eden,Technical Services Manager,Arts and Leisure,Other charges for services,Grounds Management Association,GMA001,02/12/2022,206097,1405,FESS HANDOVER ASSESS AND REPORT
Eden District Council,http://opendatacommunities.org/id/district-council/eden,Commercial Services Manager,Economic Development and Promotion,Professional fees,VIVID RESOURCING,VIV001,02/12/2022,206110,2150,TIME SHEET WE 30.9 31.10.22 ND
Eden District Council,http://opendatacommunities.org/id/district-council/eden,Planning Services,Planning Services,Agency Staff,VIVID RESOURCING,VIV001,02/12/2022,206144,2200,TIME SHEET WE 13.11.22 JS
Eden District Council,http://opendatacommunities.org/id/district-council/eden,Technical Services Manager,Technical Services,Salaries,VIVID RESOURCING,VIV001,02/12/2022,206147,1785,TIME SHEET WE 13.11.22 PB
Eden District Council,http://opendatacommunities.org/id/district-council/eden,Commercial Services Manager,Economic Development and Promotion,Professional fees,VIVID RESOURCING,VIV001,02/12/2022,206149,2500,TIME SHEET WE 13.11.22 KH
Eden District Council,http://opendatacommunities.org/id/district-council/eden,Planning Services,Planning Services,Agency Staff,VIVID RESOURCING,VIV001,02/12/2022,206150,1127,TIME SHEET WE 13.11.22 DP
Eden District Council,http://opendatacommunities.org/id/district-council/eden,Technical Services Manager,Technical Services,Salaries,OYSTER PARTNERSHIP,OYS001,02/12/2022,206167,1125,TIME SHEET W/C 7.11.22 CM
Eden District Council,http://opendatacommunities.org/id/district-council/eden,Planning Services,Planning Services,Agency Staff,G2 RECRUITMENT SOLUTIONS,G2R001,02/12/2022,206172,1561.5,TIME SHEET WE 13.11.22 JH
Eden District Council,http://opendatacommunities.org/id/district-council/eden,Revenue/Benefits Manager,Business Rate Refunds,Unique payments ****,REDACTED INFORMATION,EDC001,02/12/2022,232595,15417.19,COUNCIL TAX REFUND
Eden District Council,http://opendatacommunities.org/id/district-council/eden,Revenue/Benefits Manager,Benefits,Rent allowance,REDACTED INFORMATION,EDC001,02/12/2022,232652,1803.61,HOUSING BENEFIT
Eden District Council,http://opendatacommunities.org/id/district-council/eden,Revenue/Benefits Manager,Benefits,Rent allowance,REDACTED INFORMATION,EDC001,02/12/2022,232653,550,HOUSING BENEFIT
Eden District Council,http://opendatacommunities.org/id/district-council/eden,Financial Services Manager,Corporate Costs,Bank charges,BARCLAYCARD,BAR001,02/12/2022,232898,2225.55,BARCLAYCARD
Eden District Council,http://opendatacommunities.org/id/district-council/eden,Revenue/Benefits Manager,Business Rate Refunds,Unique payments ****,REDACTED INFORMATION,EDC001,02/12/2022,232901,164684.62,COUNCIL TAX REFUND
Eden District Council,http://opendatacommunities.org/id/district-council/eden,Revenue/Benefits Manager,Business Rate Refunds,Unique payments ****,REDACTED INFORMATION,EDC001,02/12/2022,232902,21871.85,COUNCIL TAX REFUND
Eden District Council,http://opendatacommunities.org/id/district-council/eden,Revenue/Benefits Manager,Benefits,Rent allowance,REDACTED INFORMATION,EDC001,02/12/2022,232907,12441.69,HOUSING BENEFIT
Eden District Council,http://opendatacommunities.org/id/district-council/eden,Revenue/Benefits Manager,Benefits,Rent allowance,REDACTED INFORMATION,EDC001,02/12/2022,232908,2369.18,HOUSING BENEFIT
Eden District Council,http://opendatacommunities.org/id/district-council/eden,Transformation & Customers Head of,Central Expenses,Postages,FRANKING POSTAGE,EDC001,02/12/2022,232971,2000,FRANKING POSTAGE
Eden District Council,http://opendatacommunities.org/id/district-council/eden,Transformation & Customers Head of,Central Expenses,Postages,FRANKING POSTAGE,EDC001,02/12/2022,232972,2000,FRANKING POSTAGE
Eden District Council,http://opendatacommunities.org/id/district-council/eden,Human Resources Manager,Staff Development,Training Expenses,TRAINING,EDC001,02/12/2022,232975,2040.83,TRAINING
Eden District Council,http://opendatacommunities.org/id/district-council/eden,Revenue/Benefits Manager,Business Rate Refunds,Unique payments ****,REDACTED INFORMATION,EDC001,02/12/2022,233188,9478.27,COUNCIL TAX REFUND
Eden District Council,http://opendatacommunities.org/id/district-council/eden,Revenue/Benefits Manager,Engergy Refung Grant,Grants and contributions,REDACTED INFORMATION,EDC001,02/12/2022,233189,7600,ENERGY GRANT
Eden District Council,http://opendatacommunities.org/id/district-council/eden,Revenue/Benefits Manager,Business Rate Refunds,Unique payments ****,REDACTED INFORMATION,EDC001,02/12/2022,233190,7017.11,COUNCIL TAX REFUND
Eden District Council,http://opendatacommunities.org/id/district-council/eden,Revenue/Benefits Manager,Benefits,Rent allowance,REDACTED INFORMATION,EDC001,02/12/2022,233193,3874.08,HOUSING BENEFIT
Eden District Council,http://opendatacommunities.org/id/district-council/eden,Revenue/Benefits Manager,Benefits,Rent allowance,REDACTED INFORMATION,EDC001,02/12/2022,233194,1324.2,HOUSING BENEFIT
Eden District Council,http://opendatacommunities.org/id/district-council/eden,Revenue/Benefits Manager,Business Rate Refunds,Unique payments ****,REDACTED INFORMATION,EDC001,02/12/2022,233404,990.97,COUNCIL TAX REFUND
Eden District Council,http://opendatacommunities.org/id/district-council/eden,Revenue/Benefits Manager,Business Rate Refunds,Unique payments ****,REDACTED INFORMATION,EDC001,02/12/2022,233405,19423.28,COUNCIL TAX REFUND
Eden District Council,http://opendatacommunities.org/id/district-council/eden,Revenue/Benefits Manager,Benefits,Rent allowance,REDACTED INFORMATION,EDC001,02/12/2022,233489,484012.16,HOUSING BENEFIT
Eden District Council,http://opendatacommunities.org/id/district-council/eden,Revenue/Benefits Manager,Engergy Refung Grant,Grants and contributions,REDACTED INFORMATION,EDC001,02/12/2022,233490,3450,ENERGY GRANT
Eden District Council,http://opendatacommunities.org/id/district-council/eden,Revenue/Benefits Manager,Benefits,Rent allowance,REDACTED INFORMATION,EDC001,02/12/2022,233491,765.96,HOUSING BENEFIT
